Cogmind - Beta 16 --- EXPLORER MODE // 2025.11.21 @ 14:22:47 Player: K.K.Y. Result: Destroyed by P-70 Sage with Tesla Rifle Performance ------------- Evolutions (5) 2500 Regions Visited (10) 2000 Robots Destroyed (248) 1240 Value Destroyed (10245) 10245 Prototype IDs (29) 580 Alien Tech Used (0) 0 Bonus (1902) 1902 TOTAL SCORE: 18467 Bonus ------- High Alert Combat Kills 447 Follower Combat Kills 116 Entered Garrisons 200 Used RIF Installer 500 Registered with UFD 300 Met Optimus in HQ 500 Friendly Fire -161 Cogmind --------- Core Integrity 0/1000 Matter 109/300 Energy 92/100 System Corruption 20% Temperature Cool (0) Movement Flying (35) Location -5/Factory Parts ------- > --- POWER (2) -------- (None) > --- PROPULSION (7) --- Xenon Bombardment Thruster Xenon Bombardment Thruster Field Propulsion Drive > --- UTILITY (7) ------ Core Analyzer > --- WEAPON (2) ------- Gauss Cannon Ionic Axe > --- INVENTORY (5) ---- Light Angular Momentum Engine Heavy Treads KE Penetrator Gauss Cannon Peak State ------------ > --- POWER ------------ Neutrino Core Micro Fission Core > --- PROPULSION ------- Flexi-carbon Leg Flexi-carbon Leg Flexi-carbon Leg Thunder Leg Thunder Leg Thunder Leg Thunder Leg > --- UTILITY ---------- Improved Cryofiber Web Huge Storage Unit Medium Battery Improved Transmission Jammer Improved Core Shielding Improved Core Shielding Improved Dynamic Insulation System > --- WEAPON ----------- Cooled Pulse Rifle Enhanced Coil Gun > --- INVENTORY -------- Machine Analyzer Advanced Sensor Array Improved Signal Interpreter Stasis Canceller Advanced ECM Suite Improved Medium Armor Plating Hacking Suite Authchip [R/Combat] Authchip [R/Combat] Authchip [R/Combat] Authchip [Processor] Relay Coupler [NC] Relay Coupler [Swarmer] Relay Coupler [Cutter] Relay Coupler [Brawler] Relay Coupler [Sentry] Relay Coupler [Sentry] Relay Coupler [Demolisher] Relay Coupler [Specialist] Relay Coupler [Hunter] Relay Coupler [Heavy] Relay Coupler [Behemoth] Relay Coupler [Proto] Improved Remote Datajack Improved Plasma Cutter [Rating: 102] Favorites ----------- Power Improved Ion Engine Engine Improved Ion Engine Power Core Fission Core Propulsion Spiked Treads Treads Spiked Treads Leg Improved VSS Leg Wheel Compact Wheel Flight Unit Xenon Bombardment Thruster Utility Terrain Scan Processor Device Improved Terrain Scanner Storage Huge Storage Unit Processor Terrain Scan Processor Hackware Relay Coupler [Demolisher] Protection Improved Core Shielding Weapon Makeshift Sword Energy Gun Improved Lightning Gun Energy Cannon Proton Cannon Ballistic Gun Barrage Gun Ballistic Cannon Light Cannon Launcher Grenade Launcher Special Weapon Remote Datajack Slashing Weapon Makeshift Sword Build | -11 -10 -10 -10 -9 -9 -6 -6 -5 -5 -5 ------- Run | Yrd Mat Min Sub Rec Scr Fac Gar Fac Was Fac Slots Evolved 11 | . 1 . . . . 8 . 2 . . Power 1 | . . . . . . . . 1 . . Propulsion 5 | . . . . . . 4 . 1 . . Utility 5 | . 1 . . . . 4 . . . . Weapon . | . . . . . . . . . . . Parts Attached 164 | 7 4 3 6 4 1 53 17 47 5 17 Power 16 | 1 . . . 1 . 4 2 5 . 3 Engine 7 | 1 . . . 1 . . 1 2 . 2 Core 9 | . . . . . . 4 1 3 . 1 Reactor . | . . . . . . . . . . . Propulsion 58 | 2 1 . 2 . . 14 5 26 1 7 Treads 11 | 2 1 . 2 . . 3 . 1 1 1 Leg 31 | . . . . . . 11 5 15 . . Wheel 10 | . . . . . . . . 10 . . Hover . | . . . . . . . . . . . Flight 6 | . . . . . . . . . . 6 Utility 53 | 2 1 3 1 1 1 26 6 7 2 3 Device 28 | 1 . 2 . . 1 17 2 5 . . Storage 6 | 1 . . . 1 . 2 2 . . . Processor 9 | . 1 1 1 . . 2 . 2 . 2 Hackware 2 | . . . . . . . . . 2 . Protection 8 | . . . . . . 5 2 . . 1 Artifact . | . . . . . . . . . . . Weapon 37 | 2 2 . 3 2 . 9 4 9 2 4 Energy Gun 9 | 2 . . . . . 2 . 3 . 2 Energy Cannon 3 | . . . . . . . 1 1 1 . Ballistic Gun 6 | . . . . 1 . 2 1 2 . . Ballistic Cannon 11 | . 2 . . 1 . 3 2 2 . 1 Launcher 1 | . . . 1 . . . . . . . Special Weapon 4 | . . . 1 . . 1 . 1 1 . Impact Weapon . | . . . . . . . . . . . Slashing Weapon 3 | . . . 1 . . 1 . . . 1 Piercing Weapon . | . . . . . . . . . . . Special Melee Weapon . | . . . . . . . . . . . Unidentified Prototypes 9 | . . . . . . 5 . 3 . 1 Parts Lost 59 | . . . 2 . . 15 9 20 5 8 Power 10 | . . . 1 . . . 1 4 2 2 Propulsion 20 | . . . . . . 7 3 7 . 3 Utility 13 | . . . . . . 5 2 4 1 1 Weapon 16 | . . . 1 . . 3 3 5 2 2 Highest Loss Streak 5 | . . . 1 . . 5 2 5 5 5 To Critical Strikes 4 | . . . . . . 1 . 1 1 1 Average Backups 17 | 1 4 6 8 9 17 24 24 24 10 3 Power . | . . . . . . . . . . . Propulsion . | . . . . . . . . . 1 2 Utility 12 | . 3 5 5 5 13 15 22 23 8 . Weapon 2 | . . 1 2 1 2 6 1 . . . Tool/Special . | . . . . . . . . . . . Unused Backups 48 | . . . 2 1 . 16 2 2 20 5 Power 1 | . . . . . . . . . . 1 Propulsion 3 | . . . . . . . . 1 . 2 Utility 26 | . . . . 1 . 3 2 . 20 . Weapon 16 | . . . 2 . . 12 . . . 2 Tool/Special 2 | . . . . . . 1 . 1 . . Average Slot Usage (%) 89 | . 97 100 93 97 99 85 88 78 21 20 Engine 5 | . 11 12 6 10 12 . 1 1 3 2 Core 1 | . . . . . . 5 3 4 . . Treads 15 | . 25 25 25 25 25 6 . . 2 1 Leg 9 | . . . . . . 20 28 23 . . Device 14 | . 12 12 12 12 11 22 19 12 7 . Storage 9 | . 12 12 12 12 12 5 9 9 1 . Processor 7 | . 11 12 12 12 12 4 . . . 2 Protection 3 | . . . . . . 5 13 10 1 1 Energy Gun 1 | . 3 . . . . 3 . 2 . . Ballistic Gun 4 | . . . . 11 12 . . 2 . . Ballistic Cannon 4 | . 19 25 5 . . 4 7 2 3 1 Launcher 1 | . . . 7 . . . . . . . Slashing Weapon 5 | . . . 7 12 12 1 . . . 2 Peak Build Rating 102 | 7 8 12 17 22 26 88 85 102 66 49 Average Rating 41 | 4 7 11 14 20 25 72 74 74 19 19 On Entrance 28 | . 7 8 12 17 22 26 84 69 63 2 Avg Prop Armor Cover (%) 5 | . . . . . . 3 4 6 . 20 Naked Turns 238 | . . . . . . . . . 94 144 Heaviest Build 131 | 19 23 23 22 53 53 117 126 131 117 23 Greatest Support 152 | 40 40 40 40 40 46 105 106 152 100 70 Greatest Overweight (x) 31 | . . . . 1 1 8 3 31 3 . Average Overweight (x) . | . . . . . 1 1 1 . . . Largest Inventory Capacity 25 | 10 10 10 10 20 20 25 25 25 25 5 Average Capacity 18 | 8 10 10 10 13 20 24 25 25 10 5 Most Carried 25 | 5 7 8 10 12 20 25 25 25 25 5 Average Carried 17 | 1 4 6 9 10 18 24 24 24 9 4 Final Capacity 25 | 10 10 10 10 20 20 25 25 25 5 5 Final Carried 25 | 1 7 7 10 12 20 25 25 25 5 5 Class Distribution -------------------- 83% | Hacker-Mutant 12% | Bothacker-Mutant Dominant Class ---------------- Hacker-Mutant | -10/Materials Hacker-Mutant | -10/Mines Hacker-Mutant | -10/Subcaves Hacker-Mutant | -9/Recycling Hacker-Mutant | -9/Scraptown Hacker-Mutant | -6/Factory Hacker-Mutant | -6/Garrison Bothacker-Mutant | -5/Factory Hacker-Mutant | -5/Waste Hacker-Mutant | -5/Factory Resources | -11 -10 -10 -10 -9 -9 -6 -6 -5 -5 -5 ----------- Run | Yrd Mat Min Sub Rec Scr Fac Gar Fac Was Fac Matter Collected 6064 | 207 201 198 246 182 10 2065 1098 1579 13 265 Remotely 375 | . . . . . . . . 362 13 . Salvage Created 9578 | . 241 114 515 620 . 2785 910 3727 . 666 Parts 447 | . 21 13 26 27 . 147 32 151 . 30 Haulers Intercepted 6 | . 2 . . . . 2 . 2 . . Recyclers Shooed 28 | . . . . 9 . . . 19 . . Parts Field Recycled . | . . . . . . . . . . . Retrieved Matter . | . . . . . . . . . . . Parts Self-Destructed . | . . . . . . . . . . . Prevented . | . . . . . . . . . . . Parts Restored . | . . . . . . . . . . . Kills | -11 -10 -10 -10 -9 -9 -6 -6 -5 -5 -5 ------- Run | Yrd Mat Min Sub Rec Scr Fac Gar Fac Was Fac Combat Hostiles Destroyed 184 | . 7 2 12 4 . 66 32 44 . 17 Melee 21 | . . . 8 1 . 7 . . . 5 Guns 58 | . 4 . . 3 . 10 2 35 . 4 Cannons 98 | . 3 2 4 . . 46 28 7 . 8 AOE 2 | . . . . . . 1 . 1 . . Classes Destroyed 19 | . 6 1 3 1 . 6 2 . . . Worker 7 | . . 1 . . . 1 . 5 . . Builder 16 | . 3 1 . . . 7 . 5 . . Tunneler 6 | . 1 2 . . . 1 . 2 . . Hauler 6 | . 2 . . . . 2 . 2 . . Recycler 14 | . . . . 5 . 1 . 7 . 1 Mechanic 2 | . . . . . . 1 . 1 . . Operator 1 | . . . . . . 1 . . . . Turret 2 | . . . 2 . . . . . . . Watcher 9 | . 2 . . . . 6 1 . . . Swarmer 37 | . 6 . 1 . . 6 10 5 . 9 Grunt 60 | . 1 2 . . . 27 10 17 . 3 Brawler 5 | . . . . . . 2 1 1 . 1 Duelist 1 | . . . . . . 1 . . . . Sentry 24 | . . . 1 4 . 9 5 4 . 1 Specialist 1 | . . . . . . . 1 . . . Hunter 15 | . . . . . . 5 4 6 . . Programmer 30 | . . . . . . 16 . 11 . 3 Behemoth 1 | . . . . . . . 1 . . . Subdweller 10 | . . . 10 . . . . . . . Thug 1 | . . . . . . . . 1 . . Best Kill Streak 15 | . 4 3 2 3 . 10 7 15 . 5 Combat Bots Only 14 | . 4 2 2 1 . 4 7 14 . 5 Max Kills in Single Turn 8 | . 1 1 1 1 . 8 1 2 . 1 Gunslinging . | . . . . . . . . . . . Exploded 1 | . . . . . . 1 . 1 . . Melee 1 | . . . 1 1 . 1 . . . 1 Uniques/NPCs Destroyed . | . . . . . . . . . . . Combat | -11 -10 -10 -10 -9 -9 -6 -6 -5 -5 -5 -------- Run | Yrd Mat Min Sub Rec Scr Fac Gar Fac Was Fac Hostile Shots Fired 1640 | . 24 11 60 22 . 582 305 413 6 217 Missed 511 | . 6 2 21 6 . 185 94 111 1 85 Hits 1129 | . 18 9 39 16 . 397 211 302 5 132 Melee 16 | . . . . . . 1 . 1 5 9 Projectile 1113 | . 18 9 39 16 . 396 211 301 . 123 Critical Strikes 52 | . . 1 2 . . 16 6 17 2 8 Actively Blocked 8 | . . . . . . 3 1 3 1 . Part Disruptions 4 | . . . . . . 2 1 1 . . Actively Blocked 1 | . . . . . . . . 1 . . Damage Taken 11381 | . 140 70 435 146 . 3402 1771 3568 135 1714 Core 1734 | . 28 . 124 . . 415 167 419 58 523 Absorbed by Shields 466 | . . . . . . 288 178 . . . Redirected to Shielding 282 | . . . . . . 83 46 144 9 . Ignored by Resistances 7127 | . 96 44 244 88 . 2254 1206 2106 77 1012 Regen/Repaired (Parts) 242 | . . . . . . 138 . 104 . . Core Remaining (%) 56 | 100 . . . . 39 . 31 . . . Volleys Fired 679 | . 27 10 43 38 . 231 95 189 4 42 Largest 2 | . 2 2 2 1 . 2 2 2 1 1 Hottest 162 | . 80 60 130 28 . 104 119 162 44 81 Shots Fired 1062 | . 54 20 59 38 . 322 178 346 4 41 Gun 436 | . 10 . . 38 . 105 24 247 . 12 Cannon 602 | . 44 20 44 . . 216 154 92 3 29 Launcher . | . . . . . . . . . . . Special 24 | . . . 15 . . 1 . 7 1 . Kinetic 758 | . 44 20 44 38 . 229 147 204 3 29 Thermal 163 | . 10 . 15 . . . . 126 . 12 Explosive . | . . . . . . . . . . . Electromagnetic 139 | . . . . . . 92 31 16 . . Robot Hit Streak 46 | . 8 9 21 23 . 29 40 46 3 29 Robot Miss Streak 4 | . 3 1 1 1 . 3 4 2 3 1 Penetration Max 2 | . . . . . . . . 2 . . Secondary Targets 6 | . 2 . . . . . . 4 . . Max Gunslinging Chain 1 | . 1 . . . . . . 1 . . Shots Hit Robots 944 | . 37 16 61 40 . 315 115 298 3 59 Core Hits 461 | . 14 7 17 14 . 143 113 132 . 21 Critical Kills 6 | . . . . . . . . 6 . . Critical Parts Destroyed 12 | . . . . . . . . 12 . . Critical Strikes 67 | . . . 2 2 . 16 7 30 . 10 Burn 9 | . . . . . . . . 9 . . Destroy 18 | . . . . . . . . 18 . . Blast 27 | . . . 1 . . 11 5 3 . 7 Corrupt 3 | . . . . . . 1 2 . . . Sever 10 | . . . 1 2 . 4 . . . 3 Melee Attacks 151 | . . . 78 4 . 48 . . . 21 Impact . | . . . . . . . . . . . Slashing 151 | . . . 78 4 . 48 . . . 21 Piercing . | . . . . . . . . . . . Sneak Attacks 2 | . . . 1 . . . . . . 1 Combat Hostiles 1 | . . . 1 . . . . . . . Follow-up Attacks . | . . . . . . . . . . . Damage Inflicted 27949 | . 563 282 1612 749 . 10404 3889 8394 92 1964 Guns 9028 | . 93 . . 606 . 1793 347 5959 . 230 Cannons 14234 | . 470 282 414 . . 6583 3355 2245 92 793 Explosions 590 | . . . . . . 508 . 82 . . Melee 3784 | . . . 1198 143 . 1502 . . . 941 Ramming 217 | . . . . . . 18 187 12 . . Kinetic 17957 | . 470 282 414 606 . 6814 3197 5289 92 793 Thermal 3218 | . 93 . . . . 137 . 2758 . 230 Explosive . | . . . . . . . . . . . Electromagnetic 2773 | . . . . . . 1933 505 335 . . Impact . | . . . . . . . . . . . Slashing 3784 | . . . 1198 143 . 1502 . . . 941 Piercing . | . . . . . . . . . . . Highest Corruption 20 | . . . . . . 5 5 12 12 20 Average Corruption 5 | . . . . . . 2 5 6 12 16 Corruption Purged 3 | . . . . . . 3 . . . . Corruption Blocked . | . . . . . . . . . . . Effects 261 | . . . . . . 76 58 90 4 33 Message Errors 74 | . . . . . . 17 14 38 2 3 Matter Fused 55 | . . . . . . 22 10 14 . 9 Heat Flow Errors 29 | . . . . . . 8 8 9 . 4 Energy Discharges 31 | . . . . . . 9 6 12 . 4 Parts Rejected 3 | . . . . . . 1 1 . . 1 Parts Fused 3 | . . . . . . 2 . 1 . . Data Loss (minor) 30 | . . . . . . 11 6 8 2 3 Data Loss (major) 10 | . . . . . . 3 4 2 . 1 Misfires 11 | . . . . . . 1 6 3 . 1 Alerts 3 | . . . . . . 1 1 . . 1 Misdirections 4 | . . . . . . . . . . 4 Weapon Failures 8 | . . . . . . 1 2 3 . 2 Overload Shots . | . . . . . . . . . . . Overflow Damage 705 | . 16 . 12 . . 417 19 93 . 148 Projectiles 494 | . 16 . 12 . . 356 19 83 . 8 Explosions 10 | . . . . . . . . 10 . . Melee 201 | . . . . . . 61 . . . 140 Knockbacks 124 | . 6 3 10 . . 53 36 14 . 2 Impact 3 | . . . . . . . 2 1 . . Kinetic 116 | . 6 3 10 . . 51 31 13 . 2 Secondary 5 | . . . . . . 2 3 . . . Self-Inflicted Damage 138 | . . . . . . 25 . 113 . . Shots 5 | . . . . . . 2 . 3 . . Rammed 1 | . . 1 . . . . . . . . Targets Rammed 27 | . . 1 . . . 1 24 1 . . Kicked 26 | . . . . . . 1 24 1 . . Crushed . | . . . . . . . . . . . Highest Temperature 280 | . 90 63 . 18 . 145 248 280 . 273 Average Temperature 69 | . 38 33 . 9 . 64 86 76 . 75 Received Heat Transfer 4168 | . 12 81 90 81 . 1556 868 1093 . 387 Effects 1 | . . . . . . . . 1 . . Interference 1 | . . . . . . . . 1 . . Siege Activations . | . . . . . . . . . . . Martial Activations . | . . . . . . . . . . . Shielding Activations . | . . . . . . . . . . . Robots Disrupted . | . . . . . . . . . . . Combat Hostiles . | . . . . . . . . . . . Robots Corrupted 4 | . . . . . . 2 2 . . . Combat Hostiles 4 | . . . . . . 2 2 . . . Parts Fried 8 | . . . . . . 3 3 2 . . Impact Corruptions 1 | . . . . . . . 1 . . . Robots Melted 2 | . . . . . . . . 2 . . Combat Hostiles 1 | . . . . . . . . 1 . . Parts Melted 15 | . 3 . . . . . . 11 . 1 Heat Transferred 5962 | . 200 . . . . 150 . 5242 . 370 Parts Sabotaged . | . . . . . . . . . . . Parts Stolen . | . . . . . . . . . . . Parts Stripped . | . . . . . . . . . . . Power Chain Reactions 3 | . . . . . . 2 . 1 . . Alert | -11 -10 -10 -10 -9 -9 -6 -6 -5 -5 -5 ------- Run | Yrd Mat Min Sub Rec Scr Fac Gar Fac Was Fac Maximum Alert Level 4 | . . . . . . . 4 2 . 1 Low Security (%) 80 | 100 100 100 . 100 . 100 8 61 100 92 Level 1 9 | . . . . . . . 24 27 . 7 Level 2 5 | . . . . . . . 21 11 . . Level 3 4 | . . . . . . . 36 . . . Level 4 . | . . . . . . . 8 . . . Level 5 . | . . . . . . . . . . . High Security . | . . . . . . . . . . . Max Security . | . . . . . . . . . . . Peak Influence 1236 | . 85 50 . 25 . 132 1236 494 . 241 Initial 481 | . . . . . . . 9 481 . . Average 119 | . 9 2 . . . 9 633 154 . 106 Influence Increases 6303 | . 249 70 130 123 . 2094 1317 1625 . 695 Destroy 0b10 Robot/C 3620 | . 140 40 100 80 . 1320 640 960 . 340 Destroy 0b10 Robot/NC 305 | . 40 20 . 25 . 100 5 110 . 5 Destroy Leader 808 | . 48 10 . . . 416 40 224 . 70 Allied During Kill 10 | . . . . . . . . 10 . . Successful Hack 198 | . 8 . . 18 . 118 . 26 . 28 Disable Machine 80 | . 12 . . . . 32 . 28 . 8 Anti-Garrison Action 500 | . . . . . . . 500 . . . Destroy Structure 272 | . 1 . . . . 33 72 162 . 4 Partial Spotted 15 | . . . . . . . . . . 15 Lose Combat Pursuer 495 | . . . 30 . . 75 60 105 . 225 Influence Decreases 6077 | . 249 70 130 123 . 2076 99 2861 . 469 Entered New Map 764 | . . . . . . . 9 755 . . Time Decay 4859 | . 249 70 115 123 . 2007 . 1906 . 389 Lost Part 439 | . . . . . . 69 90 200 . 80 Lost Ally 15 | . . . 15 . . . . . . . Squads Dispatched 45 | . 1 . . . . 26 . 13 . 5 Investigation 16 | . 1 . . . . 9 . 4 . 2 Extermination 20 | . . . . . . 13 . 5 . 2 Reinforcement 9 | . . . . . . 4 . 4 . 1 Assault . | . . . . . . . . . . . Garrison . | . . . . . . . . . . . Intercept . | . . . . . . . . . . . Searches Triggered . | . . . . . . . . . . . Construction Impeded 3 | . . . . . . . . 3 . . Haulers Reinforced 1 | . . . . . . . . 1 . . Active Scanning Responses . | . . . . . . . . . . . Cargo Convoy Interrupts 1 | . . . . . . . . . . 1 Stealth | -11 -10 -10 -10 -9 -9 -6 -6 -5 -5 -5 --------- Run | Yrd Mat Min Sub Rec Scr Fac Gar Fac Was Fac Distress Signals 4 | . . . . . . 2 . 2 . . Communications Jammed . | . . . . . . . . . . . Distress Signals . | . . . . . . . . . . . Times Spotted 264 | . 17 2 15 3 . 83 35 61 6 42 Peak Tracking Total 12 | . 4 2 3 1 . 5 6 8 6 12 Tactical Retreats 24 | . . . 2 . . 4 3 5 . 10 Traps | -11 -10 -10 -10 -9 -9 -6 -6 -5 -5 -5 ------- Run | Yrd Mat Min Sub Rec Scr Fac Gar Fac Was Fac Traps Triggered 17 | . 4 . 1 . . . 9 2 . 1 Indirectly . | . . . . . . . . . . . Trap Hack Attempts . | . . . . . . . . . . . Triggered . | . . . . . . . . . . . Disarmed . | . . . . . . . . . . . Reprogrammed . | . . . . . . . . . . . Reused . | . . . . . . . . . . . Traps Extracted . | . . . . . . . . . . . Installed . | . . . . . . . . . . . Triggered . | . . . . . . . . . . . Machines | -11 -10 -10 -10 -9 -9 -6 -6 -5 -5 -5 ---------- Run | Yrd Mat Min Sub Rec Scr Fac Gar Fac Was Fac Machines Disabled 23 | . 3 . 1 . . 8 2 7 . 2 Max in Single Turn 4 | . 2 . 1 . . 2 1 4 . 1 Garrison Relay 2 | . . . . . . . 2 . . . Machines Repaired . | . . . . . . . . . . . Machines Dismantled . | . . . . . . . . . . . Machines Sabotaged . | . . . . . . . . . . . Overloaded Fab Kills . | . . . . . . . . . . . Hacking | -11 -10 -10 -10 -9 -9 -6 -6 -5 -5 -5 --------- Run | Yrd Mat Min Sub Rec Scr Fac Gar Fac Was Fac Machines Accessed 46 | . 4 . 2 6 5 19 2 5 . 3 Terminals 27 | . 4 . . 4 . 11 2 3 . 3 Fabricators 2 | . . . . . . 2 . . . . Repair Stations 3 | . . . . . . 2 . 1 . . Recycling Units 1 | . . . . . . 1 . . . . Scanalyzers 3 | . . . . . . 2 . 1 . . Garrison Access 1 | . . . . . . 1 . . . . Total Hacks 143 | . 9 . 4 38 13 52 4 15 . 8 Successful 92 | . 4 . 4 29 13 29 2 8 . 3 Failed 51 | . 5 . . 9 . 23 2 7 . 5 Catastrophic 5 | . . . . . . 3 . 1 . 1 Database Lockouts . | . . . . . . . . . . . Manual 2 | . . . . . . 1 . . . 1 Terminals 72 | . 9 . . 14 . 28 4 9 . 8 Fabricators 5 | . . . . . . 5 . . . . Repair Stations 11 | . . . . . . 7 . 4 . . Recycling Units 2 | . . . . . . 2 . . . . Scanalyzers 9 | . . . . . . 7 . 2 . . Garrison Access 3 | . . . . . . 3 . . . . Terminal Hacks 69 | . 4 . 4 29 13 11 2 3 . 3 Record 41 | . . . 3 24 12 2 . . . . Part Schematic 7 | . . . . 3 . 3 . . . 1 Robot Schematic 3 | . . . . 1 . . . 1 . 1 Robot Analysis 4 | . 2 . . . . 2 . . . . Prototype ID Bank 1 | . 1 . . . . . . . . . Open Door 1 | . . . . . . . 1 . . . Level Access Points 1 | . . . . . . 1 . . . . Machine Index 1 | . 1 . . . . . . . . . Security Status 1 | . . . . . . . . 1 . . Transport Status 1 | . . . . . . . . 1 . . Recall Investigation 1 | . . . . . . 1 . . . . Hauler Manifests 2 | . . . . 1 . . . . . 1 Zone Layout 2 | . . . . . . 2 . . . . Security Stations 1 | . . . . . . . 1 . . . Proto ID Catalog 2 | . . . 1 . 1 . . . . . Fabricator Hacks 4 | . . . . . . 4 . . . . Load Schematic 2 | . . . . . . 2 . . . . Build 2 | . . . . . . 2 . . . . Repair Station Hacks 8 | . . . . . . 5 . 3 . . Scan Component 5 | . . . . . . 3 . 2 . . Repair 3 | . . . . . . 2 . 1 . . Recycling Unit Hacks 2 | . . . . . . 2 . . . . Report Inventory 1 | . . . . . . 1 . . . . Retrieve Components 1 | . . . . . . 1 . . . . Scanalyzer 8 | . . . . . . 6 . 2 . . Retrieve Study 8 | . . . . . . 6 . 2 . . Garrison Access Hacks 1 | . . . . . . 1 . . . . Unlock Access 1 | . . . . . . 1 . . . . Unauthorized Hacks . | . . . . . . . . . . . Terminals . | . . . . . . . . . . . Fabricators . | . . . . . . . . . . . Repair Stations . | . . . . . . . . . . . Recycling Units . | . . . . . . . . . . . Scanalyzers . | . . . . . . . . . . . Garrison Access . | . . . . . . . . . . . Data Cores Recovered 1 | . . . . . . 1 . . . . Used . | . . . . . . . . . . . Hacking Detections 33 | . 2 . . 4 . 18 1 5 . 3 Full Trace Events 19 | . 2 . . 3 . 9 . 3 . 2 Feedback Events 4 | . . . . . . . . 2 . 2 Corruption 4 | . . . . . . . . 2 . 2 Feedback Blocked . | . . . . . . . . . . . Robot Schematics Acquired 3 | . . . . 1 . . . 1 . 1 Robots Built . | . . . . . . . . . . . Authchips . | . . . . . . . . . . . Time . | . . . . . . . . . . . Total Robot Build Rating . | . . . . . . . . . . . Part Schematics Acquired 7 | . . . . 3 . 3 . . . 1 Parts Built 4 | . . . . . . 4 . . . . Authchips . | . . . . . . . . . . . Time 94 | . . . . . . 94 . . . . Total Part Build Rating 20 | . . . . . . 20 . . . . Part Studies Acquired 8 | . . . . . . 6 . 2 . . Parts Repaired 3 | . . . . . . 2 . 1 . . Time 78 | . . . . . . 53 . 25 . . Parts Recycled . | . . . . . . . . . . . Recycled Matter . | . . . . . . . . . . . Retrieved Matter . | . . . . . . . . . . . Retrieved Components 2 | . . . . . . 2 . . . . Parts Scanalyzed . | . . . . . . . . . . . Part Schematics Acquired . | . . . . . . . . . . . Parts Damaged . | . . . . . . . . . . . Bothacking | -11 -10 -10 -10 -9 -9 -6 -6 -5 -5 -5 ------------ Run | Yrd Mat Min Sub Rec Scr Fac Gar Fac Was Fac Used RIF Installer 1 | . . . . . . . 1 . . . Robots Hacked 1 | . . . . . . . . . 1 . Non-combat . | . . . . . . . . . . . Combat 1 | . . . . . . . . . 1 . Robot Hacks Applied 1 | . . . . . . . . . 1 . parse_system 1 | . . . . . . . . . 1 . Relay Couplers Released 13 | . . . . . . 7 6 . . . Machine Destruction 6 | . . . . . . . 6 . . . Programmers 7 | . . . . . . 7 . . . . Attached 2 | . . . . . . . . . 2 . Fabnet Peak Effective % . | . . . . . . . . . . . Robots Rewired . | . . . . . . . . . . . Allies Hacked . | . . . . . . . . . . . Hacks Repelled . | . . . . . . . . . . . Allies | -11 -10 -10 -10 -9 -9 -6 -6 -5 -5 -5 -------- Run | Yrd Mat Min Sub Rec Scr Fac Gar Fac Was Fac Total Allies 5 | . . 3 . . . . 2 . . . Largest Group 3 | . . 3 3 . . . 2 2 . . Highest-Rated Group 75 | . . 40 40 . . . 75 75 . . Highest-Rated Ally 46 | . . 16 16 . . . 46 46 . . Total Orders . | . . . . . . . . . . . Ally Attacks 37 | . . . 18 . . . . 19 . . Total Damage 710 | . . . 163 . . . . 547 . . Kills 5 | . . . 1 . . . . 4 . . Allies Corrupted . | . . . . . . . . . . . Allies Melted . | . . . . . . . . . . . Intel | -11 -10 -10 -10 -9 -9 -6 -6 -5 -5 -5 ------- Run | Yrd Mat Min Sub Rec Scr Fac Gar Fac Was Fac Active Infowar (turns) 21367 | 52 982 969 7168 2063 6274 3252 374 7 . 226 Terrain 19259 | . . 962 7168 2063 6274 2792 . . . . Structural 831 | . . . . . . 457 374 . . . T.N.C. 1 | . . . . . . . . 1 . . Machine Analysis 226 | . . . . . . . . . . 226 Cloaking 51 | . . . . . . 51 . . . . Jamming 6 | . . . . . . . . 6 . . ECM 1045 | 52 982 8 . . . 3 . . . . Robot Analysis Total 4 | . 2 . . . . 2 . . . . Derelict Logs Recovered 5 | . . 1 3 . 1 . . . . . Drone Launches . | . . . . . . . . . . . Drone Recoveries . | . . . . . . . . . . . Exploration | -11 -10 -10 -10 -9 -9 -6 -6 -5 -5 -5 ------------- Run | Yrd Mat Min Sub Rec Scr Fac Gar Fac Was Fac Turns Passed 34034 | 96 982 969 7168 2063 8187 7404 2285 4052 148 680 Spaces Moved 12822 | 50 548 570 2113 738 2516 3124 841 1372 172 778 Core 639 | 32 . . . . . 28 . 5 159 415 Treads 7673 | 18 548 570 2113 738 2516 897 . 209 13 51 Legs 3985 | . . . . . . 2199 841 945 . . Wheels 213 | . . . . . . . . 213 . . Hover . | . . . . . . . . . . . Flight 312 | . . . . . . . . . . 312 Fastest Speed 25 | 50 160 160 160 160 260 160 172 100 50 25 Average Speed 185 | 89 160 160 160 190 260 192 220 162 66 48 Slowest Speed 1600 | 160 160 160 160 260 260 450 330 1600 240 160 Overloaded Moves . | . . . . . . . . . . . Propulsion Burnouts . | . . . . . . . . . . . Robots Hopped . | . . . . . . . . . . . Potential Cave-ins . | . . . . . . . . . . . Cave-ins Triggered . | . . . . . . . . . . . Exploration Rate (%) 70 | 4 94 99 97 99 93 61 91 25 84 24 Regions Visited 10 Branch Regions 4 Pre-discovered Areas 3 | . . 1 2 . . . . . . . Known Exits Taken 7 | 1 1 1 1 1 1 1 . . . . Unknown Exits Taken . | . . . . . . . . . . . Scrap Searched 13 | . . . 9 . 4 . . . . . Spaces Dug 18 | . . . 11 . . . 7 . . . Terrain Destroyed 164 | . . . 11 . . 30 22 99 . 2 Melee 11 | . . . 11 . . . . . . . Projectile 83 | . . . . . . 26 22 33 . 2 AOE 70 | . . . . . . 4 . 66 . . Terrain Rammed . | . . . . . . . . . . . Walls Destroyed . | . . . . . . . . . . . Machines Disabled . | . . . . . . . . . . . Actions | -11 -10 -10 -10 -9 -9 -6 -6 -5 -5 -5 --------- Run | Yrd Mat Min Sub Rec Scr Fac Gar Fac Was Fac Total 21880 | 100 601 608 5738 1358 4163 4160 1086 2852 207 1007 Wait 7748 | 38 6 20 3481 564 1631 604 65 1195 13 131 Move 12814 | 49 547 569 2112 737 2515 3124 840 1372 171 778 Hop . | . . . . . . . . . . . Pick Up 106 | 6 12 2 8 6 10 39 4 6 3 10 Fast Attach 93 | 2 . . 1 1 2 29 10 37 1 10 Attach 45 | 5 4 2 1 2 . 14 2 3 4 8 Detach 19 | . 1 2 1 1 1 7 . 2 2 2 Swap 50 | . 1 1 5 1 . 19 8 15 . . Drop 121 | . 3 1 8 4 2 44 13 32 9 5 Fire 679 | . 27 10 43 38 . 231 95 189 4 42 Melee 151 | . . . 78 4 . 48 . . . 21 Ram . | . . . . . . . . . . . Kick 26 | . . . . . . 1 24 1 . . Crush 1 | . . 1 . . . . . . . . Escape Stasis 25 | . . . . . . . 25 . . . Rewire 2 | . . . . . 2 . . . . . Trap . | . . . . . . . . . . . Miscellaneous . | . . . . . . . . . . . Route ------- -11/Scrapyard -10/Materials (discovered 5 exits: *Mat x3 / *Min x2) -10/Mines (discovered 3 exits: *Mat x2 / *Sub) -10/Subcaves (discovered 3 exits: *Mat x2 / *Rec) -9/Recycling (discovered 2 exits: *Fac / *Scr) -9/Scraptown (discovered 2 exits: *Fac x2) -6/Factory (discovered 6 exits: *Fac x4 / *Low / Gar) -6/Garrison (discovered 3 exits: *Fac x3) -5/Factory -5/Waste -5/Factory (discovered 1 exit: *Fac) History --------- Turn | Location | Event 21 | -11/Scrapyard | Identified exit to Materials 21 | -11/Scrapyard | Discovered exit to Materials (range 15) 97 | -11/Scrapyard | Entered Materials 97 | -10/Materials | Evolved 1 slot: Utility x1 305 | -10/Materials | Build established: Hacker-Mutant 364 | -10/Materials | Identified exit to Mines 364 | -10/Materials | Discovered exit to Mines (range 7) 544 | -10/Materials | Discovered exit to Mines (range 8) 591 | -10/Materials | Identified exit to Materials 591 | -10/Materials | Discovered exit to Materials (range 6) 892 | -10/Materials | Discovered exit to Materials (range 15) 1002 | -10/Materials | Discovered exit to Materials (range 4) 1079 | -10/Materials | Entered Mines 1122 | -10/Mines | A weapon hastily lodged in a ceiling crevice suddenly fell to the ground 1297 | -10/Mines | Discovered exit to Materials (range 13) 1489 | -10/Mines | Identified exit to Subcaves 1489 | -10/Mines | Discovered exit to Subcaves (range 10) 1508 | -10/Mines | Discovered exit to Materials (range 5) 1685 | -10/Mines | Learned location of Storage (-9) 1767 | -10/Mines | Assisted by bots powering up and referring to "LRC-V3" 2048 | -10/Mines | Entered Subcaves 2048 | -10/Subcaves | Accompanied by 3 allies 2184 | -10/Subcaves | Shifting Twisted Machinery released Mak. Light Armor Plating 2190 | -10/Subcaves | Shifting Twisted Machinery released Scrap Shield 2393 | -10/Subcaves | Identified exit to Materials 2393 | -10/Subcaves | Discovered exit to Materials (range 7) 2458 | -10/Subcaves | Learned location of Zion (-6) 2500 | -10/Subcaves | Identified exit to Recycling 2500 | -10/Subcaves | Discovered exit to Recycling (range 11) 2871 | -10/Subcaves | Visited 4L-MR0's lab 2889 | -10/Subcaves | Found Meta Core 3119 | -10/Subcaves | Learned Materials emergency access door positions 4111 | -10/Subcaves | Visited Clippyterm 4115 | -10/Subcaves | Learned Factory trap positions 5408 | -10/Subcaves | Discovered exit to Materials (range 14) 5737 | -10/Subcaves | Shifting Twisted Machinery released Spk. Treads 6900 | -10/Subcaves | Met a Zionite searching for "candidates" 7130 | -10/Subcaves | A swath of the cavern ceiling suddenly collapsed 8023 | -10/Subcaves | A swath of the cavern ceiling suddenly collapsed 8453 | -10/Subcaves | Core integrity fell below 50% 8476 | -10/Subcaves | Learned 2 Materials zone layouts 8617 | -10/Subcaves | Shifting Twisted Machinery released Barrage Gun 8687 | -10/Subcaves | Shifting Twisted Machinery released Mak. Hacking Suite 8697 | -10/Subcaves | Shifting Twisted Machinery released Spk. Treads 9216 | -10/Subcaves | Entered Recycling 10281 | -9/Recycling | Identified exit to Factory 10281 | -9/Recycling | Discovered exit to Factory (range 7) 11061 | -9/Recycling | Scanned before Scraplab entrance 11077 | -9/Recycling | Identified exit to Scraptown 11077 | -9/Recycling | Discovered exit to Scraptown (range 16) 11100 | -9/Recycling | Entered Scraplab 11279 | -9/Recycling | Entered Scraptown 11834 | -9/Scraptown | Identified exit to Factory 11834 | -9/Scraptown | Discovered exit to Factory (range 7) 11987 | -9/Scraptown | Scanned Subdweller tech in exchange for log data 11995 | -9/Scraptown | Learned location of 1 exit from Research 12073 | -9/Scraptown | Visited Assassins FH 12216 | -9/Scraptown | Visited Red Mages 12292 | -9/Scraptown | Found Relay Coupler [Proto] 12364 | -9/Scraptown | Visited Awakened 12640 | -9/Scraptown | Visited TADAMA 12702 | -9/Scraptown | Visited UFD Registry 12702 | -9/Scraptown | Registered with UFD as "Gearrider" 12726 | -9/Scraptown | Visited Symbiants 12780 | -9/Scraptown | Visited Cave Peace 13032 | -9/Scraptown | Visited Chapter 10 13231 | -9/Scraptown | Visited Scrapoid Research Area 13317 | -9/Scraptown | Visited Abandonware Association 13338 | -9/Scraptown | Learned abandonware demo "OVRCLOCK.EXE" 13358 | -9/Scraptown | Learned abandonware demo "HACKBUD.EXE" 13358 | -9/Scraptown | Learned abandonware demo "MELTYB.EXE" 13436 | -9/Scraptown | Visited Junk Repository 13499 | -9/Scraptown | Visited Observation Area 13634 | -9/Scraptown | Visited Supply Room 13725 | -9/Scraptown | Visited DA-N13 Charitable Foundation 13748 | -9/Scraptown | Found DCF Scrap (28 items) 13865 | -9/Scraptown | Visited Science Guys 14006 | -9/Scraptown | Visited Research Penetration Think Tank 15188 | -9/Scraptown | Delivered Scrap Shield to a Scientist 15623 | -9/Scraptown | Discovered exit to Factory (range 5) 19313 | -9/Scraptown | Met Optimus 19313 | -9/Scraptown | Accepted into 0bPrime 19466 | -9/Scraptown | Entered Factory 19466 | -6/Factory | Evolved 8 slots: Propulsion x4, Utility x4 19467 | -6/Factory | Loaded intel: 101 trap records 19701 | -6/Factory | Attached Meta Core, gained temporary slots: Propulsion, Utility, Weapon 20484 | -6/Factory | Identified exit to Lower Caves 20484 | -6/Factory | Discovered exit to Lower Caves (range 10) 21213 | -6/Factory | Identified exit to Factory 21213 | -6/Factory | Discovered exit to Factory (range 15) 22049 | -6/Factory | Lost 5 parts (2n1u2w) 23048 | -6/Factory | Fabricated Imp. VSS Leg (x2) 23126 | -6/Factory | Fabricated Imp. VSS Leg (x2) 23613 | -6/Factory | Discovered exit to Factory (range 5) 24477 | -6/Factory | Repaired Imp. Dynamic Insulation System 25065 | -6/Factory | Repaired Flexi-carbon Leg 25449 | -6/Factory | Discovered exit to Factory (range 4) 25648 | -6/Factory | Discovered exit to Factory (range 16) 26870 | -6/Factory | Identified exit to Garrison 26870 | -6/Factory | Entered Garrison 26905 | -6/Garrison | Core integrity fell below 50% 26918 | -6/Garrison | Triggered checkpoint 27089 | -6/Garrison | Garrison Relay disabled 27254 | -6/Garrison | Triggered checkpoint 27254 | -6/Garrison | Spotted B-75 Beast 27283 | -6/Garrison | Destroyed B-75 Beast 27356 | -6/Garrison | Triggered checkpoint 27404 | -6/Garrison | Build established: Scientist-Mutant 27708 | -6/Garrison | Learned Factory security intel 27720 | -6/Garrison | Triggered checkpoint 27726 | -6/Garrison | Discovered exit to Factory (range 13) 27812 | -6/Garrison | Triggered checkpoint 28140 | -6/Garrison | Build established: Hacker-Mutant 28169 | -6/Garrison | Destroyed 7 combat bots 28192 | -6/Garrison | Triggered checkpoint 28306 | -6/Garrison | Discovered exit to Factory (range 15) 28380 | -6/Garrison | Triggered checkpoint 28446 | -6/Garrison | Garrison Relay disabled 28591 | -6/Garrison | Rescued a captive Derelict 28593 | -6/Garrison | Rescued a captive Derelict 29083 | -6/Garrison | Discovered exit to Factory (range 15) 29132 | -6/Garrison | Installed Relay Interface Framework 29155 | -6/Garrison | Entered Factory 29155 | -5/Factory | Accompanied by 2 allies 29155 | -5/Factory | Evolved 2 slots: Power x1, Propulsion x1 29336 | -5/Factory | Repaired Imp. VSS Leg+ 29429 | -5/Factory | Build established: Bothacker-Mutant 30280 | -5/Factory | Lost 3 parts (1p1u1w) 31971 | -5/Factory | System corruption reached 10% 32064 | -5/Factory | Lost 5 parts (1p4n) 32077 | -5/Factory | Identified exit to Upper Caves 32077 | -5/Factory | Discovered exit to Upper Caves (range 11) 32084 | -5/Factory | Destroyed 14 combat bots 32194 | -5/Factory | Lost 5 parts (2n1u2w) 32323 | -5/Factory | Lost 4 parts (1p2u1w) 32706 | -5/Factory | Found Unknown Device 32706 | -5/Factory | Identified Launcher Loader 33207 | -5/Factory | Sucked down chute 33207 | -5/Factory | Entered Waste 33212 | -5/Waste | Spotted C-40 Crusher 33222 | -5/Waste | Spotted C-40 Crusher 33236 | -5/Waste | Crushed by Compactor (0 parts destroyed, 1 dropped) 33239 | -5/Waste | Crushed by Compactor (1 part destroyed) 33242 | -5/Waste | Crushed by Compactor (0 parts destroyed, 1 dropped) 33245 | -5/Waste | Crushed by Compactor (1 part destroyed, 2 dropped) 33253 | -5/Waste | Crushed by Compactor (1 part destroyed) 33277 | -5/Waste | Spotted C-40 Crusher 33283 | -5/Waste | Spotted C-40 Crusher 33284 | -5/Waste | Lost 5 parts (2p1u2w) 33291 | -5/Waste | Spotted C-40 Crusher 33295 | -5/Waste | Spotted C-40 Crusher 33343 | -5/Waste | Identified exit to Factory 33343 | -5/Waste | Discovered exit to Factory (range 11) 33355 | -5/Waste | Entered Factory 33539 | -5/Factory | Build established: Hacker-Mutant 33566 | -5/Factory | Core integrity fell below 50% 33730 | -5/Factory | Core integrity fell below 20% 33927 | -5/Factory | Identified exit to Factory 33927 | -5/Factory | Discovered exit to Factory (range 14) 34001 | -5/Factory | Cargo convoy interrupted 34035 | -5/Factory | Destroyed by P-70 Sage with Tesla Rifle Last Messages --------------- 34009_ System corrupted: Matter fused (-10). 34018_ Lgt. Angular Momentum Engine destroyed. 34019_ Xenon Bombardment Thruster destroyed. 34019_ Destroyed VTOL Module. 34019_ S-27 Virus knocked back. 34021_ S-27 Virus destroyed. 34021_ K-01 Serf cleans the Terminal. 34023_ Slug penetrates S-27 Virus. 34023_ S-27 Virus destroyed. 34023_ Subcomponent Replicator disabled. 34026_ K-01 Serf collects debris. 34027_ Slug penetrates S-27 Virus. 34029_ S-27 Virus destroyed. 34029_ K-01 Serf collects debris. 34031_ Destroyed VTOL Module. 34031_ S-27 Virus suffers critical hit (Blast). 34031_ S-27 Virus destroyed. 34032_ K-01 Serf collects debris. 34033_ S-27 Virus destroyed. 34035_ Terminal disabled. Map ----- +----------------------------------------------------+ | ????###################### | | ????# + | | ????# ############## ##### | | ????# #????????????# #???# | | ????# #????????????# #???# | | ????# #????????????# #???######+## | | ????# #????????????#+#???????# ??? | | ????# #??????????????????????+???? | | ????# #??????????????????????????? | | ???## ##?????????????????????????# | | ???# #?????????????????????????? | | ???# " +?????????????????????????? | | ???# #?????????????????????????? | | ???## ##?????????????????????????? | | ????# #??????????????????????????? | | ????# #??????????????????????????? | | ????# #??????????????????????????? | | ????# #??????????????????????????? | | ????# #??????????????????????????? | | ????# #??????????????????????????? | | ????# #??????????????????????????? | | ????# #####+##########???????????? | | ????# [p* ????????? | | ????##### *%####???????????????? | | ????????# #??????????????????? | | ????????#@ #??????????????????? | | ??????? [ #??????????????????? | | ????? % ! #??????????????????? | | ???# = #??????????????????? | | ??" %%%%[k ""?????????????????? | | ?#"" % "" T"#????????????????? | | ?#"" """ ""#????????????????? | | ?#"" """ ###????????????????? | | ?#" "" ??????????????????? | | ??"T ?? ?????????????????? | | ?#"" ?? ?????????????????? | | ??"" ??? ????????????????? | | ???" ????? ???????????????? | | ???" ?????? ????????????????? | | ????? ??????? ???????????????????? | | ?????????????????????????????????? | | ?????????????????????????????????? | | ?????????????????????????????????? | | ?????????????????????????????????? | | ?????????????????????????????????? | | ?????????????????????????????????? | | ?????????????????????????????????? | | ?????????????????????????????????? | | ?????????????????????????????????? | | ?????????????????????????????????? | +----------------------------------------------------+ Best States ------------- Heat Dissipation 73 Energy Generation 34 Energy Capacity 675 Matter Stores 300 Matter Capacity 300 Sight Range 16 Terrain Scan Range 20 Terrain Scan Density 85 ECM Strength 1 Jamming Range 14 Cloak Strength 2 Additional Mass Support 9 Base Temperature (-) 150 EM Shielding 3 Corruption Containment 8 Armor Coverage 600 Resistance: KI 35 Resistance: TH 35 Resistance: EX 35 Resistance: EM 35 Resistance: I 35 Resistance: S 35 Resistance: P 35 Core Shielding 30 Evasion (%) 70 Core Analysis 6 Recoil Reduction 4 Offensive Hacking 20 Relay Coupler Types 2 Relay Coupler Value 29 Authchip Count 4 Item Schematics ----------------- Plasma Cannon | -9/Recycling | Hacked Mni. Grenade Launcher | -9/Recycling | Hacked Lgt. Armored Exoskeleton | -9/Recycling | Hacked Imp. VSS Leg | -6/Factory | Hacked Force Lance | -6/Factory | Hacked Imp. System Shield | -6/Factory | Hacked Matter Neutralizer | -5/Factory | Hacked Robot Schematics ------------------ B-36 Bruiser | -9/Recycling | Hacked R-06 Scavenger | -5/Factory | Hacked H-66 Slayer | -5/Factory | Hacked Fabricated ------------ Imp. VSS Leg | x2 | -6/Factory Imp. VSS Leg | x2 | -6/Factory Repaired ---------- Imp. Dynamic Insulation System | 19% | -6/Factory Flexi-carbon Leg | 16% | -6/Factory Imp. VSS Leg | 5% | -5/Factory Studied --------- Imp. Medium Treads | -6/Factory | Hacked Imp. VSS Leg | -6/Factory | Hacked Flexi-carbon Leg | -6/Factory | Hacked Coil Gun | -6/Factory | Hacked Fission Core | -6/Factory | Hacked Hvy. Flak Cannon | -6/Factory | Hacked Thunder Leg | -5/Factory | Hacked Plasma Cannon | -5/Factory | Hacked Alien Tech Used ----------------- None Achievements -------------- None Challenges ------------ None Game ------ Seed FrostAntisysWeb Manual? 0 Play Time 02:32:23 Cumulative 130.1 hours Start 2025.11.21 @ 11:43:04 End 2025.11.21 @ 14:22:47 Sessions 1 Manual Loads 0 Difficulty Explorer Special Mode None Game No. 151 Rogue 0 Adventurer 0 Explorer 151 Win Type - Total 0 Types 0/0/0/0/0/0/0/0/0/0 Lore% 67 Gallery% 65 Achievement% 50 Wizard Run 0 Options --------- Layout 1 ASCII 0 Keyboard 0 Movement Mouse Keybinds 0 Fullscreen 1 Font 24/Smallcaps Map View 50x35 Zoom Use 0% Tactical HUD 1 Map Filters NONE Filters NONE Steam 1 RUN: 78f64fda-0e64-43ec-a0b6-bd497a77af7a